fUSD/lending_fUSD_20250219
["ID","MTS","AMOUNT","RATE_DAILY","PERIOD"]
[353689839,1739991066508,-500.0,0.00011366,2]
[353689840,1739991066518,-819.36,0.00011366,2]
[353689841,1739991066527,-504.01,0.00011366,2]
[353689842,1739991066536,-841.31,0.00011366,2]
[353689843,1739991066545,-716.57,0.00011366,2]
[353689844,1739991066554,-1059.78,0.00011366,2]
[353689845,1739991066563,-685.17,0.00011366,2]
[353689846,1739991066572,-948.49,0.00011366,2]
[353689847,1739991066582,-1210.93,0.00011366,2]
[353689848,1739991066591,-1232.61,0.00011366,2]
[353689849,1739991066601,-660.75,0.00011366,2]
[353689850,1739991066611,-722.62,0.00011366,2]
[353689851,1739991066621,-856.89,0.00011366,2]
[353689852,1739991066630,-500.0,0.00011366,2]
[353689853,1739991066640,-500.0,0.00011366,2]
[353689854,1739991066650,-529.4,0.00011366,2]
[353689855,1739991066660,-500.0,0.00011366,2]
[353689856,1739991066669,-559.342957,0.00011366,2]
[353689857,1739991066678,-500.0,0.00011366,2]
[353689858,1739991066688,-1123.65,0.00011366,2]
[353689859,1739991066697,-500.0,0.00011366,2]
[353689860,1739991066706,-500.0,0.00011366,2]
[353689861,1739991066715,-767.14,0.00011366,2]
[353689862,1739991066725,-500.0,0.00011366,2]
[353689863,1739991066735,-838.25,0.00011366,2]
[353689864,1739991066745,-500.0,0.00011366,2]
[353689865,1739991066755,-500.0,0.00011366,2]
[353689866,1739991066764,-857.74,0.00011366,2]
[353689867,1739991066774,-702.31,0.00011366,2]
[353689868,1739991066783,-500.0,0.00011366,2]
[353689869,1739991066794,-1022.47,0.00011366,2]
[353689870,1739991066803,-766.99,0.00011366,2]
[353689871,1739991066813,-1271.18,0.00011366,2]
[353689872,1739991066822,-562.14,0.00011366,2]
[353689873,1739991066831,-1255.93,0.00011366,2]
[353689874,1739991066841,-735.72,0.00011366,2]
[353689875,1739991066851,-1023.77,0.00011366,2]
[353689876,1739991066861,-500.0,0.00011366,2]
[353689877,1739991066871,-741.16,0.00011366,2]
[353689878,1739991066880,-500.0,0.00011366,2]
[353689879,1739991066889,-500.0,0.00011366,2]
[353689880,1739991066900,-500.0,0.00011366,2]
[353689881,1739991066910,-1492.46,0.00011366,2]
[353689882,1739991066920,-1211.99,0.00011366,2]
[353689883,1739991066930,-908.55,0.00011366,2]
[353689884,1739991066939,-1115.3,0.00011366,2]
[353689885,1739991066949,-622.28,0.00011366,2]
[353689886,1739991066959,-725.41,0.00011366,2]
[353689887,1739991066968,-1312.13,0.00011366,2]
[353689888,1739991066978,-500.0,0.00011366,2]
[353689889,1739991066987,-500.0,0.00011366,2]
[353689890,1739991066997,-1135.89,0.00011366,2]
[353689891,1739991067006,-500.0,0.00011366,2]
[353689892,1739991067016,-500.0,0.00011366,2]
[353689893,1739991067025,-626.24,0.00011366,2]
[353689894,1739991067035,-873.22,0.00011366,2]
[353689895,1739991067044,-828.64,0.00011366,2]
[353689896,1739991067054,-1067.13,0.00011366,2]
[353689897,1739991067063,-760.82,0.00011366,2]
[353689898,1739991067073,-959.81,0.00011366,2]
[353689899,1739991067082,-1130.2,0.00011366,2]
[353689900,1739991067091,-500.0,0.00011366,2]
[353689901,1739991067101,-621.03,0.00011366,2]
[353689902,1739991067111,-837.8,0.00011366,2]
[353689903,1739991067120,-500.0,0.00011366,2]
[353689904,1739991067130,-687.97,0.00011366,2]
[353689905,1739991067140,-500.0,0.00011366,2]
[353689906,1739991067150,-524.85,0.00011366,2]
[353689907,1739991067160,-763.25,0.00011366,2]
[353689908,1739991067169,-1453.26,0.00011366,2]
[353689909,1739991067179,-2178.41,0.00011366,2]
[353689910,1739991067189,-500.0,0.00011366,2]
[353689911,1739991067198,-2978.68,0.00011366,2]
[353689912,1739991067208,-867.64,0.00011366,2]
[353689913,1739991067217,-500.0,0.00011366,2]
[353689914,1739991067227,-500.0,0.00011366,2]
[353689915,1739991067237,-500.0,0.00011366,2]
[353689916,1739991067246,-500.0,0.00011366,2]
[353689917,1739991067257,-909.17,0.00011366,2]
[353689918,1739991067266,-659.34,0.00011366,2]
[353689919,1739991067276,-500.0,0.00011366,2]
[353689920,1739991067285,-500.0,0.00011366,2]
[353689921,1739991067295,-944.41,0.00011366,2]
[353689922,1739991067304,-1667.3,0.00011366,2]
[353689923,1739991067313,-1335.65,0.00011366,2]
[353689924,1739991067323,-1536.77,0.00011366,2]
[353689925,1739991067333,-500.0,0.00011366,2]
[353689926,1739991067343,-2300.26,0.00011366,2]
[353689927,1739991067353,-178.18,0.00011366,2]
[353689928,1739991067363,-3967.01,0.00011366,2]
[353689929,1739991067372,-1054.96,0.00011366,2]
[353689930,1739991067381,-2151.49,0.00011366,2]
[353689931,1739991067391,-500.0,0.00011366,2]
[353689932,1739991067401,-1026.98,0.00011366,2]
[353689933,1739991067411,-1717.95,0.00011366,2]
[353689934,1739991067421,-347.89257449,0.00011366,2]
[353689935,1739991067431,-723.0,0.00011366,2]
[353689936,1739991067442,-858.82,0.00011366,2]
[353689937,1739991067451,-736.71,0.00011366,2]
[353689938,1739991067461,-500.0,0.00011366,2]
[353689939,1739991067471,-731.07,0.00011366,2]
[353689940,1739991067481,-808.06,0.00011366,2]
[353689941,1739991067491,-500.0,0.00011366,2]
[353689942,1739991067500,-500.0,0.00011366,2]
[353689943,1739991067512,-1003.52,0.00011366,2]
[353689944,1739991067522,-500.0,0.00011366,2]
[353689945,1739991067531,-1216.45,0.00011366,2]
[353689946,1739991067540,-897.65,0.00011366,2]
[353689947,1739991067550,-969.77,0.00011366,2]
[353689948,1739991067560,-1228.25,0.00011366,2]
[353689949,1739991067570,-2264.91,0.00011366,2]
[353689950,1739991067579,-597.7,0.00011366,2]
[353689951,1739991067589,-500.0,0.00011366,2]
[353689952,1739991067598,-1031.26,0.00011366,2]
[353689953,1739991067608,-500.0,0.00011366,2]
[353689954,1739991067618,-813.49,0.00011366,2]
[353689955,1739991067628,-500.0,0.00011366,2]
[353689956,1739991067637,-500.0,0.00011366,2]
[353689957,1739991067647,-943.59,0.00011366,2]
[353689958,1739991067656,-807.9,0.00011366,2]
[353689959,1739991067666,-952.43,0.00011366,2]
[353689960,1739991067675,-1249.19,0.00011366,2]
[353689961,1739991067685,-1931.39,0.00011366,2]
[353689962,1739991067695,-699.69,0.00011366,2]
[353689963,1739991067704,-736.37,0.00011366,2]
[353689964,1739991067714,-500.0,0.00011366,2]
[353689965,1739991067723,-1349.59,0.00011366,2]
[353689966,1739991067732,-2136.43,0.00011366,2]
[353689967,1739991067742,-500.0,0.00011366,2]
[353689968,1739991067752,-1308.13,0.00011366,2]
[353689969,1739991067761,-763.21,0.00011366,2]
[353689970,1739991067770,-500.0,0.00011366,2]
[353689971,1739991067779,-500.0,0.00011366,2]
[353689972,1739991067789,-676.6,0.00011366,2]
[353689973,1739991067799,-1669.19,0.00011366,2]
[353689974,1739991067808,-500.0,0.00011366,2]
[353689975,1739991067817,-2496.14,0.00011366,2]
[353689976,1739991067826,-838.79,0.00011366,2]
[353689977,1739991067836,-500.0,0.00011366,2]
[353689978,1739991067847,-844.7,0.00011366,2]
[353689979,1739991067856,-500.0,0.00011366,2]
[353689980,1739991067865,-1038.95,0.00011366,2]
[353689981,1739991067875,-500.0,0.00011366,2]
[353689982,1739991067885,-643.34,0.00011366,2]
[353689983,1739991067895,-862.23,0.00011366,2]
[353689984,1739991067904,-1682.85,0.00011366,2]
[353689985,1739991067913,-1170.77,0.00011366,2]
[353689986,1739991067921,-972.98,0.00011366,2]
[353689987,1739991067932,-1036.38,0.00011366,2]
[353689988,1739991067941,-500.0,0.00011366,2]
[353689989,1739991067950,-665.65,0.00011366,2]
[353689990,1739991067960,-500.0,0.00011366,2]
[353689991,1739991067969,-816.32,0.00011366,2]
[353689992,1739991067978,-500.0,0.00011366,2]
[353689993,1739991067987,-1472.21,0.00011366,2]
[353689994,1739991067997,-1143.91,0.00011366,2]
[353689995,1739991068006,-500.0,0.00011366,2]
[353689996,1739991068015,-7684.69,0.00011366,2]
[353689997,1739991068024,-480.6,0.00011366,2]
[353689998,1739991068034,-500.0,0.00011366,2]
[353689999,1739991068043,-1239.55,0.00011366,2]
[353690000,1739991068053,-1609.82,0.00011366,2]
[353690001,1739991068063,-694.56,0.00011366,2]
[353690002,1739991068072,-1000.0,0.00011366,2]
[353690003,1739991068081,-677.2,0.00011366,2]
[353690004,1739991068091,-500.0,0.00011366,2]
[353690005,1739991068119,-1545.54,0.00011366,2]
[353690006,1739991068132,-1288.85,0.00011366,2]
[353690007,1739991068143,-1349.76,0.00011366,2]
[353690008,1739991068153,-591.57,0.00011366,2]
[353690009,1739991068162,-500.0,0.00011366,2]
[353690010,1739991068171,-500.0,0.00011366,2]
[353690011,1739991068180,-1045.64,0.00011366,2]
[353690012,1739991068190,-544.71,0.00011366,2]
[353690013,1739991068199,-515.07,0.00011366,2]
[353690014,1739991068209,-359.90821912,0.00011366,2]
[353690015,1739991068219,-500.0,0.00011366,2]
[353690016,1739991068228,-500.0,0.00011366,2]
[353690017,1739991068238,-500.0,0.00011366,2]
[353690018,1739991068247,-500.0,0.00011366,2]
[353690019,1739991068257,-864.21,0.00011366,2]
[353690020,1739991068267,-1217.73,0.00011366,2]
[353690021,1739991068276,-500.0,0.00011366,2]
[353690022,1739991068286,-1242.44,0.00011366,2]
[353690023,1739991068295,-608.9,0.00011366,2]
[353690024,1739991068304,-500.0,0.00011366,2]
[353690025,1739991068314,-500.0,0.00011366,2]
[353690026,1739991068323,-500.0,0.00011366,2]
[353690027,1739991068333,-1333.33,0.00011366,2]
[353690028,1739991068342,-2099.28,0.00011366,2]
[353690029,1739991068351,-646.88,0.00011366,2]
[353690030,1739991068361,-1098.74,0.00011366,2]
[353690031,1739991068370,-631.78,0.00011366,2]
[353690032,1739991068379,-1305.78,0.00011366,2]
[353690033,1739991068390,-591.42,0.00011366,2]
[353690034,1739991068402,-814.94,0.00011366,2]
[353690035,1739991068412,-500.0,0.00011366,2]
[353690036,1739991068421,-500.0,0.00011366,2]
[353690037,1739991068430,-239.00338583,0.00011366,2]
[353690038,1739991068443,-1698.82,0.00011366,2]
[353690039,1739991068453,-1656.29,0.00011366,2]
[353690040,1739991068463,-500.0,0.00011366,2]
[353690041,1739991068472,-958.07,0.00011366,2]
[353690042,1739991068483,-1140.78,0.00011366,2]
[353690043,1739991068493,-1343.79,0.00011366,2]
[353690044,1739991068502,-500.0,0.00011366,2]
[353690045,1739991068512,-500.0,0.00011366,2]
[353690046,1739991068523,-3616.83,0.00011366,2]
[353690047,1739991068533,-1109.34,0.00011366,2]
[353690048,1739991068542,-940.17,0.00011366,2]
[353690049,1739991068551,-500.0,0.00011366,2]
[353690050,1739991068561,-500.0,0.00011366,2]
[353690051,1739991068571,-1068.94,0.00011366,2]
[353690052,1739991068580,-1192.02,0.00011366,2]
[353690053,1739991068590,-500.0,0.00011366,2]
[353690054,1739991068599,-1134.66,0.00011366,2]
[353690055,1739991068609,-500.0,0.00011366,2]
[353690056,1739991068619,-500.0,0.00011366,2]
[353690057,1739991068629,-1387.53,0.00011366,2]
[353690058,1739991068639,-500.0,0.00011366,2]
[353690059,1739991068650,-500.0,0.00011366,2]
[353690060,1739991068660,-525.63,0.00011366,2]
[353690061,1739991068671,-500.0,0.00011366,2]
[353690062,1739991068680,-1867.51,0.00011366,2]
[353690063,1739991068690,-1262.86,0.00011366,2]
[353690064,1739991068700,-1225.46,0.00011366,2]
[353690065,1739991068709,-500.0,0.00011366,2]
[353690066,1739991068719,-1283.85,0.00011366,2]
[353690067,1739991068729,-1033.15,0.00011366,2]
[353690068,1739991068739,-500.0,0.00011366,2]
[353690069,1739991068749,-1890.5,0.00011366,2]
[353690070,1739991068759,-500.0,0.00011366,2]
[353690071,1739991068769,-500.0,0.00011366,2]
[353690072,1739991068778,-1247.13,0.00011366,2]
[353690073,1739991068788,-500.0,0.00011366,2]
[353690074,1739991068798,-953.52,0.00011366,2]
[353690075,1739991068807,-701.13,0.00011366,2]
[353690076,1739991068817,-606.51,0.00011366,2]
[353690077,1739991068827,-500.0,0.00011366,2]
[353690078,1739991068837,-500.0,0.00011366,2]
[353690079,1739991068847,-837.99,0.00011366,2]
[353690080,1739991068857,-852.55,0.00011366,2]
[353690081,1739991068866,-1040.5,0.00011366,2]
[353690082,1739991068876,-626.51,0.00011366,2]
[353690083,1739991068886,-500.0,0.00011366,2]
[353690084,1739991068897,-500.0,0.00011366,2]
[353690085,1739991068907,-500.0,0.00011366,2]
[353690086,1739991068916,-1225.45,0.00011366,2]
[353690087,1739991068926,-500.0,0.00011366,2]
[353690088,1739991068936,-500.0,0.00011367,2]
[353690089,1739991068946,-500.0,0.00011367,2]
[353690090,1739991068955,-500.0,0.00011367,2]
[353690091,1739991068966,-711.12,0.00011367,2]
[353690092,1739991068975,-500.0,0.00011367,2]
[353690093,1739991068985,-500.0,0.00011367,2]
[353690094,1739991068995,-500.0,0.00011367,2]
[353690095,1739991069005,-500.0,0.00011367,2]
[353690096,1739991069014,-151.0,0.00011367,2]
[353690097,1739991069024,-567.75,0.00011367,2]
[353690098,1739991069034,-774.79,0.00011367,2]
[353690099,1739991069043,-648.92,0.00011367,2]
[353690100,1739991069053,-500.0,0.00011367,2]
[353690101,1739991069063,-500.0,0.00011367,2]
[353690102,1739991069073,-500.0,0.00011367,2]
[353690103,1739991069083,-500.0,0.00011367,2]
[353690104,1739991069093,-939.76,0.00011367,2]
[353690105,1739991069103,-634.71238733,0.00011367,2]
[353690106,1739991069113,-500.0,0.00011367,2]
[353690107,1739991069123,-500.0,0.00011367,2]
[353690108,1739991069133,-500.0,0.00011367,2]
[353690109,1739991069145,-500.0,0.00011367,2]
[353690110,1739991069155,-726.31,0.00011367,2]
[353690111,1739991069165,-500.0,0.00011367,2]
[353690112,1739991069175,-527.6,0.00011367,2]
[353690113,1739991069186,-500.0,0.00011367,2]
[353690114,1739991069195,-637.14,0.00011367,2]
[353690115,1739991069205,-550.13,0.00011367,2]
[353690116,1739991069216,-501.4,0.00011367,2]
[353690117,1739991069226,-500.0,0.00011367,2]
[353690118,1739991069236,-605.64,0.00011367,2]
[353690119,1739991069247,-500.0,0.00011367,2]
[353690120,1739991069258,-500.0,0.00011367,2]
[353690121,1739991069268,-500.0,0.00011367,2]
[353690122,1739991069279,-500.0,0.00011367,2]
[353690123,1739991069289,-567.36,0.00011367,2]
[353690124,1739991069299,-670.06,0.00011367,2]
[353690125,1739991069309,-500.0,0.00011367,2]
[353690126,1739991069319,-500.0,0.00011367,2]
[353690127,1739991069328,-500.0,0.00011367,2]
[353690128,1739991069338,-500.0,0.00011367,2]
[353690129,1739991069348,-741.15,0.00011367,2]
[353690130,1739991069358,-500.0,0.00011367,2]
[353690131,1739991069368,-917.52,0.00011367,2]
[353690132,1739991069378,-653.65,0.00011367,2]
[353690133,1739991069387,-500.0,0.00011367,2]
[353690134,1739991069400,-500.0,0.00011367,2]
[353690135,1739991069410,-500.0,0.00011367,2]
[353690136,1739991069419,-500.0,0.00011367,2]
[353690137,1739991069429,-575.12,0.00011367,2]
[353690138,1739991069440,-500.0,0.00011367,2]
[353690139,1739991069450,-500.0,0.00011367,2]
[353690140,1739991069459,-1008.4,0.00011367,2]
[353690141,1739991069469,-500.0,0.00011367,2]
[353690142,1739991069479,-500.0,0.00011367,2]
[353690143,1739991069488,-648.67,0.00011367,2]
[353690144,1739991069498,-500.0,0.00011367,2]
[353690145,1739991069508,-709.82,0.00011367,2]
[353690146,1739991069519,-500.0,0.00011367,2]
[353690147,1739991069529,-500.0,0.00011367,2]
[353690148,1739991069539,-500.0,0.00011367,2]
[353690149,1739991069548,-759.69,0.00011367,2]
[353690150,1739991069558,-518.50621479,0.00011367,2]
[353690151,1739991069567,-939.45,0.00011367,2]
[353690152,1739991069577,-934.24,0.00011367,2]
[353690153,1739991069587,-1565.74,0.00011367,2]
[353690154,1739991069603,-500.0,0.00011367,2]
[353690155,1739991069613,-779.39,0.00011367,2]
[353690156,1739991069623,-1114.74,0.00011367,2]
[353690157,1739991069633,-500.0,0.00011367,2]
[353690158,1739991069643,-500.0,0.00011367,2]
[353690159,1739991069653,-500.0,0.00011367,2]
[353690160,1739991069663,-500.0,0.00011367,2]
[353690161,1739991069672,-500.0,0.00011367,2]
[353690162,1739991069682,-500.0,0.00011367,2]
[353690163,1739991069692,-1307.87,0.00011367,2]
[353690164,1739991069701,-500.0,0.00011367,2]
[353690165,1739991069711,-1563.31,0.00011367,2]
[353690166,1739991069720,-500.0,0.00011367,2]
[353690167,1739991069730,-626.84,0.00011367,2]
[353690168,1739991069739,-500.0,0.00011367,2]
[353690169,1739991069749,-500.0,0.00011367,2]
[353690170,1739991069759,-500.0,0.00011367,2]
[353690171,1739991069768,-1098.62,0.00011367,2]
[353690172,1739991069778,-602.42,0.00011367,2]
[353690173,1739991069788,-1563.53,0.00011367,2]
[353690174,1739991069798,-500.0,0.00011367,2]
[353690175,1739991069808,-1617.89,0.00011367,2]
[353690176,1739991069818,-568.32,0.00011367,2]
[353690177,1739991069828,-500.0,0.00011367,2]
[353690178,1739991069838,-500.0,0.00011367,2]
[353690179,1739991069847,-1902.45,0.00011367,2]
[353690180,1739991069857,-500.0,0.00011367,2]
[353690181,1739991069867,-997.72,0.00011367,2]
[353690182,1739991069877,-1224.85,0.00011367,2]
[353690183,1739991069887,-1076.75,0.00011367,2]
[353690184,1739991069897,-1287.1,0.00011367,2]
[353690185,1739991069907,-507.43,0.00011367,2]
[353690186,1739991069917,-1834.21,0.00011367,2]
[353690187,1739991069927,-500.0,0.00011367,2]
[353690188,1739991069937,-1131.11,0.00011367,2]
[353690189,1739991069947,-500.0,0.00011367,2]
[353690190,1739991069956,-967.39,0.00011367,2]
[353690191,1739991069966,-1818.6,0.00011367,2]
[353690192,1739991069976,-613.64,0.00011367,2]
[353690193,1739991069986,-500.0,0.00011367,2]
[353690194,1739991069996,-500.0,0.00011367,7]
[353690195,1739991070006,-1954.75,0.00011367,2]
[353690196,1739991070016,-500.0,0.00011367,2]
[353690197,1739991070026,-1010.26,0.00011367,2]
[353690198,1739991070036,-500.0,0.00011367,2]
[353690199,1739991070046,-651.03,0.00011367,2]
[353690200,1739991070056,-825.62,0.00011367,2]
[353690201,1739991070065,-500.0,0.00011367,2]
[353690202,1739991070075,-842.88,0.00011367,2]
[353690203,1739991070084,-500.0,0.00011367,2]
[353690204,1739991070095,-500.0,0.00011367,2]
[353690205,1739991070104,-500.0,0.00011367,2]
[353690206,1739991070115,-500.0,0.00011367,2]
[353690207,1739991070124,-500.0,0.00011367,2]
[353690208,1739991070133,-1110.11,0.00011367,2]
[353690209,1739991070143,-774.36,0.00011367,2]
[353690210,1739991070152,-811.92,0.00011367,2]
[353690211,1739991070166,-500.0,0.00011367,2]
[353690212,1739991070176,-1151.56,0.00011367,2]
[353690213,1739991070186,-500.0,0.00011367,2]
[353690214,1739991070196,-500.0,0.00011367,2]
[353690215,1739991070206,-500.0,0.00011367,2]
[353690216,1739991070216,-1042.18,0.00011367,2]
[353690217,1739991070226,-500.0,0.00011367,2]
[353690218,1739991070236,-534.83,0.00011367,2]
[353690219,1739991070249,-500.0,0.00011367,2]
[353690220,1739991070259,-500.0,0.00011367,2]
[353690221,1739991070268,-523.47582211,0.00011367,2]
[353690222,1739991070278,-619.91,0.00011367,2]
[353690223,1739991070288,-533.51,0.00011367,2]
[353690224,1739991070298,-500.0,0.00011367,2]
[353690225,1739991070308,-581.26,0.00011367,2]
[353690226,1739991070318,-500.0,0.00011367,2]
[353690227,1739991070328,-618.38500613,0.00011367,2]
[353690228,1739991070337,-500.0,0.00011367,2]
[353690229,1739991070347,-500.0,0.00011367,2]
[353690230,1739991070357,-500.0,0.00011367,2]
[353690231,1739991070366,-500.0,0.00011367,2]
[353690232,1739991070376,-500.0,0.00011367,2]
[353690233,1739991070386,-212.53209082,0.00011367,2]
[353690234,1739991070397,-500.0,0.00011367,2]
[353690235,1739991070407,-500.0,0.00011367,2]
[353690236,1739991070417,-304.19947058,0.00011367,2]
[353690237,1739991070427,-500.0,0.00011367,2]
[353690238,1739991070440,-500.0,0.00011367,2]
[353690239,1739991070450,-849.02,0.00011367,2]
[353690240,1739991070460,-563.08,0.00011367,2]
[353690241,1739991070469,-500.0,0.00011367,2]
[353690242,1739991070480,-500.0,0.00011367,2]
[353690243,1739991070490,-758.16,0.00011367,2]
[353690244,1739991070500,-500.0,0.00011367,2]
[353690245,1739991070509,-500.0,0.00011367,2]
[353690246,1739991070521,-1893.0,0.00011421,2]
[353690247,1739991070530,-183.21271491,0.0001143,2]
[353690248,1739991070540,-2242.44455942,0.0001143,2]
[353690249,1739991070550,-11567.23126235,0.0001143,2]
[353690250,1739991070559,-815.88553629,0.0001143,2]
[353690251,1739991070569,-1398.28713769,0.00011431,2]
[353690252,1739991070579,-3046.97846164,0.00011431,2]
[353690253,1739991070589,-173.0,0.00011437,3]
[353690254,1739991070599,-1285.43,0.00011447,2]
[353690255,1739991070608,-2055.78,0.00011447,2]
[353690256,1739991070618,-1176.26,0.00011447,2]
[353690257,1739991070628,-1598.02,0.00011447,2]
[353690258,1739991070638,-1177.64,0.00011447,2]
[353690259,1739991070648,-1728.13,0.00011447,2]
[353690260,1739991070658,-1464.57,0.00011447,2]
[353690261,1739991070668,-988.1,0.00011447,2]
[353690262,1739991070678,-1523.71,0.00011447,2]
[353690263,1739991070689,-1697.79,0.00011447,2]
[353690264,1739991070699,-914.84,0.00011447,2]
[353690265,1739991070709,-1345.01,0.00011447,2]
[353690266,1739991070719,-1899.5,0.00011447,2]
[353690267,1739991070729,-500.0,0.00011447,2]
[353690268,1739991070739,-835.97,0.00011447,2]
[353690269,1739991070749,-1253.59,0.00011447,2]
[353690270,1739991070759,-500.0,0.00011447,2]
[353690271,1739991070769,-676.35,0.00011447,2]
[353690272,1739991070779,-1199.2,0.00011447,2]
[353690273,1739991070789,-1444.06,0.00011447,2]
[353690274,1739991070798,-1165.51,0.00011447,2]
[353690275,1739991070808,-1110.09,0.00011447,2]
[353690276,1739991070818,-955.77,0.00011447,2]
[353690277,1739991070828,-1702.36,0.00011447,2]
[353690278,1739991070838,-500.0,0.00011447,2]
[353690279,1739991070848,-1068.07,0.00011447,2]
[353690280,1739991070858,-541.29,0.00011447,2]
[353690281,1739991070868,-1380.32,0.00011447,2]
[353690282,1739991071130,-500.0,0.00011448,2]
[353690283,1739991071142,-564.03,0.00011448,2]
[353690284,1739991071152,-500.0,0.00011448,2]
[353690285,1739991071162,-500.0,0.00011448,2]
[353690286,1739991071172,-958.09,0.00011448,2]
[353690287,1739991071181,-151.0,0.00011448,2]
[353690288,1739991071190,-500.0,0.00011448,2]
[353690289,1739991071200,-638.44,0.00011448,2]
[353690290,1739991071209,-500.0,0.00011448,2]
[353690291,1739991071219,-1305.17,0.00011448,2]
[353690292,1739991071228,-500.0,0.00011448,2]
[353690293,1739991071238,-500.0,0.00011448,2]
[353690294,1739991071248,-500.0,0.00011448,2]
[353690295,1739991071258,-500.0,0.00011448,2]
[353690296,1739991071268,-335.282174,0.00011448,2]
[353690297,1739991071278,-1013.4,0.00011448,2]
[353690298,1739991071287,-445.363227,0.00011448,2]
[353690299,1739991071296,-500.0,0.00011448,2]
[353690300,1739991071307,-800.82,0.00011448,2]
[353690301,1739991071316,-566.24,0.00011448,2]
[353690302,1739991071326,-500.0,0.00011448,2]
[353690303,1739991071335,-500.0,0.00011448,2]
[353690304,1739991071345,-1291.22,0.00011448,2]
[353690305,1739991071355,-705.7,0.00011448,2]
[353690306,1739991071364,-1007.94,0.00011448,2]
[353690307,1739991071374,-500.0,0.00011448,2]
[353690308,1739991071383,-500.0,0.00011448,2]
[353690309,1739991071392,-500.0,0.00011448,2]
[353690310,1739991071402,-500.0,0.00011448,2]
[353690311,1739991071412,-1100.17,0.00011448,2]
[353690312,1739991071421,-1164.92,0.00011448,2]
[353690313,1739991071432,-1009.77,0.00011448,2]
[353690314,1739991071445,-1086.24,0.00011448,2]
[353690315,1739991071455,-1103.11,0.00011448,2]
[353690316,1739991071464,-500.0,0.00011448,2]
[353690317,1739991071473,-500.0,0.00011448,2]
[353690318,1739991071484,-689.09,0.00011448,2]
[353690319,1739991071493,-500.0,0.00011448,2]
[353690320,1739991071502,-1109.15,0.00011448,2]
[353690321,1739991071513,-752.25,0.00011448,2]
[353690322,1739991071522,-712.53,0.00011448,2]
[353690323,1739991071531,-500.0,0.00011448,2]
[353690324,1739991071540,-500.0,0.00011448,2]
[353690325,1739991071550,-844.15,0.00011448,2]
[353690326,1739991071559,-1035.94,0.00011448,2]
[353690327,1739991071568,-1177.99,0.00011448,2]
[353690328,1739991071578,-500.0,0.00011448,2]
[353690329,1739991071587,-970.06,0.00011448,2]
[353690330,1739991071596,-287.27,0.00011448,2]
[353690331,1739991071606,-842.16,0.00011448,2]
[353690332,1739991071615,-1231.95,0.00011448,2]
[353690333,1739991071624,-833.68,0.00011448,2]
[353690334,1739991071633,-1384.51,0.00011448,2]
[353690335,1739991071643,-992.43,0.00011448,2]
[353690336,1739991071653,-700.4,0.00011448,2]
[353690337,1739991071663,-896.41,0.00011448,2]
[353690338,1739991071673,-500.0,0.00011448,2]